bitfinex-derivatives/quotes_ETHF0:USTF0_20241022
["timestamp","ask_amount","ask_price","bid_price","bid_amount"]
[1729624455332,3.2078,2632.1,2632.0,2.55441]
[1729624455731,3.58789,2632.1,2632.0,2.55441]
[1729624456036,3.2078,2632.1,2632.0,2.55441]
[1729624456236,4.95789,2632.1,2632.0,2.55441]
[1729624456437,4.95789,2632.1,2632.0,0.77881]
[1729624456941,4.95789,2632.1,2631.5,0.4089]
[1729624456942,4.5778,2632.1,2631.5,0.4089]
[1729624457145,0.38012,2631.9,2631.8,0.38012]
[1729624457438,1.75012,2631.9,2631.8,0.38012]
[1729624457941,1.37,2631.9,2631.7,1.37]
[1729624458135,0.38015,2631.8,2631.7,0.38014]
[1729624458338,0.38015,2631.8,2631.7,1.75014]
[1729624461236,0.38015,2631.8,2631.7,1.37]
[1729624461838,0.38016,2631.7,2631.6,1.75015]
[1729624462338,0.38016,2631.7,2631.6,5.55015]
[1729624462743,0.38016,2631.7,2631.6,1.75015]
[1729624463042,0.80626,2631.7,2631.6,1.75015]
[1729624463740,0.80626,2631.7,2631.6,5.55015]
[1729624464938,0.80626,2631.7,2631.6,1.75015]
[1729624465133,0.80626,2631.7,2631.6,0.38015]
[1729624465337,0.80626,2631.7,2631.6,1.75015]
[1729624472141,0.3802,2631.5,2631.4,0.38018]
[1729624472347,0.3802,2631.5,2631.4,1.75018]
[1729624472643,0.3802,2631.5,2631.4,5.55018]
[1729624473144,0.3802,2631.5,2631.4,1.75018]
[1729624473447,0.3802,2631.5,2631.4,5.55018]
[1729624475445,0.80088,2631.6,2631.5,0.38018]
[1729624475640,0.80088,2631.6,2631.5,1.75018]
[1729624476243,0.80088,2631.6,2631.5,2.15358]
[1729624476743,0.4261,2631.7,2631.5,1.7734]
[1729624476952,0.80626,2631.7,2631.6,0.38016]
[1729624477250,0.80626,2631.7,2631.6,0.79236]
[1729624478553,0.4261,2631.7,2631.6,2.16236]
[1729624484559,0.80625,2631.7,2631.6,2.16236]
[1729624484752,2.17625,2631.7,2631.6,2.16236]
[1729624485353,2.17625,2631.7,2631.6,0.79236]
[1729624487766,0.80625,2631.7,2631.6,0.79236]
[1729624489158,2.17625,2631.7,2631.6,0.79236]
[1729624490860,2.17625,2631.7,2631.6,0.4122]
[1729624492570,2.17625,2631.7,2631.6,0.79236]
[1729624493071,2.17625,2631.7,2631.6,0.38016]
[1729624493762,2.17625,2631.7,2631.4,1.7759]
[1729624493763,0.38019,2631.5,2631.4,0.38018]
[1729624495769,0.78679,2631.5,2631.4,0.38018]
[1729624496270,0.78679,2631.5,2631.4,1.75018]
[1729624500280,0.78679,2631.5,2631.4,1.37]
[1729624500471,6.9466,2631.5,2630.9,7.00878065]
[1729624500669,1.75025,2631.1,2631.0,0.38023]
[1729624501175,0.38023,2631.2,2631.1,0.38022]
[1729624501478,0.8053,2631.4,2631.3,0.38021]
[1729624501780,0.38019,2631.5,2631.4,0.38018]
[1729624502080,0.80529,2631.5,2631.4,1.75018]
[1729624502270,2.17529,2631.5,2631.4,0.38018]
[1729624504173,1.7951,2631.5,2631.2,3.6224]
[1729624504374,1.7502,2631.4,2631.3,0.38019]
[1729624507272,1.37,2631.4,2631.2,4.9924]
[1729624507479,1.75021,2631.3,2631.2,3.58801]
[1729624507782,2.60401,2631.3,2631.2,3.58801]
[1729624509786,2.60401,2631.3,2631.2,0.38021]
[1729624511286,1.23401,2631.3,2631.2,1.75021]
[1729624512789,1.23401,2631.3,2631.2,0.38021]
[1729624513784,2.60401,2631.3,2631.2,0.38021]
[1729624520085,1.37,2631.4,2631.2,1.37]
[1729624520286,1.37,2631.4,2631.3,1.75021]
[1729624520287,0.3802,2631.4,2631.3,1.75021]
[1729624521086,1.7502,2631.4,2631.3,0.38021]
[1729624521487,5.17,2631.4,2631.0,3.2078]
[1729624521683,1.75024,2631.1,2631.0,3.2078]
[1729624521882,1.75024,2631.1,2631.0,0.38025]
[1729624522090,1.75024,2631.1,2630.9,3.80098065]
[1729624522091,1.37,2631.1,2630.9,3.80098065]
[1729624522288,1.75025,2631.0,2630.9,4.18123065]
[1729624526091,5.55105,2631.0,2630.9,3.80098065]
[1729624533101,1.75025,2631.0,2630.9,3.80098065]
[1729624533288,5.55105,2631.0,2630.9,3.80098065]
[1729624537603,4.18105,2631.0,2630.9,3.80098065]
[1729624537901,5.55105,2631.0,2630.9,3.80098065]
[1729624542203,4.18105,2631.0,2630.9,3.80098065]
[1729624542402,5.55105,2631.0,2630.9,3.80098065]
[1729624547012,4.18105,2631.0,2630.9,3.80098065]
[1729624547213,5.55105,2631.0,2630.9,3.80098065]
[1729624549210,1.75025,2631.0,2630.9,3.80098065]
[1729624551122,4.18689696,2631.2,2630.9,3.80098065]
[1729624551412,0.3802,2631.4,2631.1,1.37]
[1729624551613,3.2078,2631.7,2631.2,2.1924]
[1729624551807,0.38017,2631.6,2631.5,0.38018]
[1729624552115,1.75017,2631.6,2631.5,0.38018]
[1729624552815,0.38018,2631.5,2631.4,0.79779]
[1729624553016,1.75018,2631.5,2631.4,0.79779]
[1729624553221,1.75018,2631.5,2631.4,0.4176]
[1729624553513,0.38021,2631.4,2631.3,0.3802]
[1729624553710,2.15161,2631.4,2631.3,0.3802]
[1729624554016,0.95031,2631.9,2631.3,1.37]
[1729624554216,1.37,2631.4,2631.3,1.75021]
[1729624555612,1.37,2631.4,2631.2,4.0302]
[1729624555921,0.8149,2631.8,2631.2,0.8224]
[1729624555922,1.75021,2631.3,2631.2,0.8224]
[1729624557717,1.75021,2631.3,2631.2,1.20262]
[1729624558113,1.75021,2631.3,2631.2,0.8224]
[1729624558514,1.75021,2631.3,2631.2,0.4165]
[1729624558817,1.75021,2631.3,2631.2,0.79672]
[1729624559321,1.75021,2631.3,2631.2,0.4165]
[1729624559615,1.75021,2631.3,2631.2,0.79672]
[1729624560711,1.75021,2631.3,2631.2,0.4165]
[1729624560912,0.38025,2631.0,2630.9,4.20868065]
[1729624561122,1.37,2631.0,2630.9,4.58894065]
[1729624561517,3.58802,2631.3,2631.2,0.38022]
[1729624561821,4.95802,2631.3,2631.2,0.38022]
[1729624562012,1.75022,2631.3,2631.2,0.38022]
[1729624562215,0.38022,2631.3,2631.2,0.38022]
[1729624562416,1.37,2631.3,2631.2,0.38022]
[1729624562919,1.75021,2631.3,2631.2,0.38022]
[1729624563519,1.37,2631.3,2630.9,4.20868065]
[1729624563719,1.37,2631.0,2630.9,4.58894065]
[1729624568816,1.37,2631.3,2631.2,0.38021]
[1729624569023,1.7502,2631.4,2631.3,0.38021]
[1729624569326,1.7502,2631.4,2631.3,1.18391]
[1729624570318,1.37,2631.4,2631.3,1.18391]
[1729624571526,3.6197,2631.6,2631.3,0.8037]
[1729624571527,0.38019,2631.5,2631.3,0.8037]
[1729624571825,1.37,2631.4,2631.3,2.55391]
[1729624572027,1.37,2631.4,2631.3,1.18391]
[1729624572230,1.37,2631.4,2631.3,4.98391]
[1729624573220,1.37,2631.4,2631.3,4.6037]
[1729624573420,1.37,2631.4,2631.3,6.35391]
[1729624575728,1.75019,2631.4,2631.3,4.98391]
[1729624575933,1.37,2631.4,2631.3,4.98391]
[1729624576134,1.75019,2631.4,2631.3,1.18391]
[1729624576432,2.53659,2631.4,2631.3,0.38021]
[1729624576623,2.53659,2631.4,2631.3,4.18061284]
[1729624576829,2.96179,2631.4,2631.3,4.18061284]
[1729624581229,2.96179,2631.4,2631.3,3.80040284]
[1729624581432,6.76179,2631.4,2631.3,3.80040284]
[1729624583830,9.96959,2631.4,2631.3,3.15960284]
[1729624584132,9.96959,2631.4,2631.3,2.51890284]
[1729624584331,9.96959,2631.4,2631.3,2.12630284]
[1729624586039,9.58269,2631.4,2631.3,2.12630284]
[1729624590631,9.58269,2631.4,2631.3,1.46690405]
[1729624591240,0.38025,2631.0,2630.9,3.80098065]
[1729624591546,5.14733969,2631.0,2630.9,3.80098065]
[1729624591839,8.94813969,2631.0,2630.9,3.80098065]
[1729624599245,4.95805,2631.0,2630.9,4.18124065]
[1729624599447,4.95805,2631.0,2630.9,4.57584065]
[1729624599652,1.75025,2631.0,2630.9,4.57584065]
[1729624600145,5.55105,2631.0,2630.9,4.57584065]
[1729624600758,1.75025,2631.0,2630.9,4.57584065]
[1729624600959,1.75025,2631.0,2630.9,4.19558065]
[1729624604154,1.75025,2631.0,2630.9,4.57584065]
[1729624604348,1.37,2631.0,2630.9,4.57584065]
[1729624604553,1.75025,2631.0,2630.9,4.57584065]
[1729624609961,1.75025,2631.0,2630.9,4.19558065]
[1729624611248,1.75025,2631.0,2630.9,4.57584065]
[1729624611453,1.75025,2631.0,2630.9,4.19558065]
[1729624617770,1.75025,2631.0,2630.9,4.57584065]
[1729624618063,3.2078,2631.1,2630.9,4.57584065]
[1729624618064,3.2078,2631.1,2631.0,0.38025]
[1729624618363,4.5778,2631.1,2631.0,0.38025]
[1729624618561,4.5778,2631.1,2631.0,4.56635]
[1729624618958,4.95804,2631.1,2631.0,4.56635]
[1729624619671,4.5778,2631.1,2631.0,4.56635]
[1729624620869,4.95804,2631.1,2631.0,4.56635]
[1729624621069,4.5778,2631.1,2631.0,4.56635]
[1729624621762,1.37,2631.1,2631.0,4.56635]
[1729624622470,1.37,2631.1,2630.9,3.80098065]
[1729624622772,6.9584,2631.0,2630.5,0.8038]
[1729624623071,1.75031,2630.6,2630.5,0.8038]
[1729624624670,2.16091,2630.6,2630.5,0.8038]
[1729624625171,2.16091,2630.6,2630.5,0.4019]
[1729624627865,0.38035,2630.3,2630.2,0.77936]
[1729624628060,1.75035,2630.3,2630.2,0.399]
[1729624629175,1.75035,2630.3,2630.2,0.77937]
[1729624634162,1.37,2630.3,2630.2,0.77937]
[1729624635576,3.2078,2630.8,2630.7,0.38029]
[1729624635874,1.37,2631.0,2630.9,0.38026]
[1729624636079,1.37,2631.0,2630.9,2.59996]
[1729624636273,1.37,2631.0,2630.9,5.03076]
[1729624637487,0.38025,2631.0,2630.9,5.03076]
[1729624637666,1.75025,2631.0,2630.9,5.03076]
[1729624638674,1.37,2631.0,2630.9,5.03076]
[1729624640575,1.37,2631.0,2630.5,3.2078]
[1729624640781,0.38029,2630.8,2630.7,0.38028]
[1729624641876,1.75029,2630.8,2630.7,0.38028]
[1729624642074,1.37,2630.8,2630.7,0.38028]
[1729624642674,1.75028,2630.8,2630.7,0.38028]
[1729624645277,1.37,2630.8,2630.7,0.38028]
[1729624646183,1.75028,2630.8,2630.7,0.38028]
[1729624646585,1.37,2630.8,2630.7,0.38028]
[1729624650485,1.37,2630.8,2630.7,4.18108]
[1729624651288,1.37,2630.8,2630.7,0.38028]
[1729624651682,1.75028,2630.8,2630.7,0.38028]
[1729624652890,1.37,2630.8,2630.7,0.38028]
[1729624653690,1.75028,2630.8,2630.7,0.38028]
[1729624654083,1.37,2630.8,2630.7,0.38028]
[1729624654682,3.2078,2631.7,2630.7,5.1708]
[1729624654888,0.80651,2631.4,2631.3,0.38019]
[1729624655088,2.17651,2631.4,2631.3,0.38019]
[1729624655280,1.7963,2631.4,2631.3,0.38019]
[1729624655488,2.17649,2631.4,2631.3,0.38019]
[1729624656094,4.15814,2631.9,2631.4,0.38018]
[1729624656384,3.12019,2631.5,2631.4,0.38018]
[1729624656884,1.75019,2631.5,2631.4,0.38018]
[1729624662183,3.12019,2631.5,2631.4,0.38018]
[1729624662591,1.75019,2631.5,2631.4,0.38018]
[1729624663094,1.37,2631.5,2631.4,0.38018]
[1729624665091,0.8116,2631.7,2631.6,0.38015]
[1729624665092,1.75016,2631.7,2631.6,0.38015]
[1729624665294,1.37,2631.7,2631.6,0.38016]
[1729624665688,0.8006,2632.0,2631.6,2.1713]
[1729624665892,1.37,2631.8,2631.7,1.75015]
[1729624666200,1.37,2631.8,2631.7,0.38015]
[1729624666800,1.75013,2631.8,2631.7,0.38015]
[1729624666986,0.38015,2631.7,2631.6,1.18145]
[1729624667297,1.75015,2631.7,2631.6,0.3923]
[1729624670095,1.75015,2631.7,2631.6,0.77246]
[1729624670397,1.75015,2631.7,2631.6,0.3923]
[1729624670790,1.75015,2631.7,2631.6,2.14246]
[1729624670995,0.38014,2631.8,2631.7,0.38013]
[1729624671190,1.75014,2631.8,2631.7,0.38013]
[1729624671893,1.37,2631.8,2631.6,3.6001]
[1729624672093,1.75088,2632.0,2631.6,3.2078]
[1729624672094,1.75015,2631.7,2631.6,3.2078]
[1729624672395,1.75015,2631.7,2631.6,3.58796]
[1729624678006,1.75015,2631.7,2631.6,0.38016]
[1729624682301,1.75015,2631.7,2631.6,3.58796]
[1729624682900,0.38013,2631.9,2631.8,0.38012]
[1729624683218,3.2078,2632.3,2631.9,4.74951]
[1729624683506,3.58787,2632.3,2632.2,1.75008]
[1729624683902,0.38007,2632.3,2632.2,8.75708]
[1729624684512,1.75006,2632.4,2632.3,0.38006]
[1729624684708,1.75006,2632.4,2632.3,1.18256]
[1729624684906,1.75006,2632.4,2632.3,1.57686]
[1729624685511,1.75006,2632.4,2632.3,2.94686]
[1729624685512,1.37,2632.4,2632.3,2.94686]
[1729624685707,1.75005,2632.5,2632.4,0.38005]
[1729624685906,0.38002,2632.7,2632.4,1.37]
[1729624686106,0.37998,2632.9,2632.8,0.37998]
[1729624686309,1.74998,2632.9,2632.8,1.74998]
[1729624686510,1.37,2632.9,2632.8,1.74998]
[1729624686815,1.37,2633.0,2632.8,1.37]
[1729624687009,1.37,2633.3,2632.9,1.37]
[1729624687211,1.74992,2633.3,2633.1,1.37]
[1729624687413,0.4069,2633.4,2633.1,1.74994]
[1729624687414,1.74994,2633.2,2633.1,1.74994]
[1729624687806,1.37,2633.2,2633.0,1.37]
[1729624688008,1.74996,2633.1,2633.0,1.37]
[1729624688613,1.37,2633.1,2633.0,1.37]
[1729624688815,1.37,2633.1,2633.0,1.74996]
[1729624689907,1.37,2633.4,2633.0,5.1676]
[1729624690103,1.37,2633.4,2633.3,1.37]
[1729624690104,1.74991,2633.4,2633.3,1.37]
[1729624692513,0.37993,2633.2,2633.1,3.2078]
[1729624693019,0.37995,2633.1,2632.9,4.60616]
[1729624693408,0.37995,2633.1,2633.0,0.37996]
[1729624693816,0.37994,2633.2,2633.1,0.37994]
[1729624694011,0.37994,2633.2,2633.0,0.37995]
[1729624694410,0.37994,2633.2,2632.9,4.2262]
[1729624694714,0.37994,2633.2,2633.1,0.37995]
[1729624695218,0.37995,2633.1,2633.0,0.37995]
[1729624695807,0.94978,2633.4,2632.9,4.2262]
[1729624696014,0.37996,2633.1,2633.0,0.37996]
[1729624696810,3.2078,2633.5,2632.9,4.2262]
[1729624697016,0.37992,2633.3,2633.2,3.34993]
[1729624697518,0.37992,2633.3,2633.2,2.97]
[1729624697721,0.37992,2633.3,2633.2,3.34993]
[1729624698115,0.37992,2633.3,2633.2,7.14753]
[1729624698516,0.37992,2633.3,2633.2,6.7676]
[1729624698715,0.37992,2633.3,2633.2,3.7976]
[1729624699424,0.37992,2633.3,2633.2,4.17753]
[1729624700314,0.37992,2633.3,2633.2,3.7976]
[1729624700816,0.37992,2633.3,2633.2,4.17753]
[1729624701614,0.37992,2633.3,2633.2,7.14753]
[1729624703119,0.8331,2633.8,2633.2,6.7676]
[1729624703320,0.8331,2633.8,2633.7,3.2078]
[1729624703321,0.37985,2633.8,2633.7,3.2078]
[1729624703621,0.94954,2634.1,2633.7,3.2078]
[1729624703826,0.37984,2633.9,2633.8,0.80653]
[1729624704223,0.37984,2633.9,2633.8,4.60333]
[1729624706320,0.37983,2633.9,2633.8,4.60333]
[1729624707027,0.39697281,2633.9,2633.8,4.60333]
[1729624708627,0.95412586,2634.3,2633.8,7.1935]
[1729624708829,0.95412586,2634.3,2634.0,3.2078]
[1729624709025,0.37979,2634.2,2634.1,0.4129]
[1729624711622,0.94952,2634.1,2633.5,1.049]
[1729624711930,0.37985,2633.8,2633.7,3.2078]
[1729624712224,0.4146,2634.0,2633.7,3.2078]
[1729624712728,0.37985,2633.8,2633.7,3.58765]
[1729624713225,0.37985,2633.8,2633.7,7.0046]
[1729624713621,0.37985,2633.8,2633.7,7.38446]
[1729624713823,0.37985,2633.8,2633.7,7.0046]
[1729624714422,0.37985,2633.8,2633.7,8.3746]
[1729624714729,0.37985,2633.8,2633.7,9.16366]
[1729624716030,0.37985,2633.8,2633.7,8.7838]
[1729624716221,0.37985,2633.8,2633.7,9.16366]
[1729624717828,0.37985,2633.8,2633.7,8.7838]
[1729624719130,0.37985,2633.8,2633.7,9.16366]
[1729624719327,0.37985,2633.8,2633.7,8.7838]
[1729624720127,0.37985,2633.8,2633.7,9.16366]
[1729624720725,0.37985,2633.8,2633.7,4.987]
[1729624721823,0.37985,2633.8,2633.7,5.36686]
[1729624722023,0.37985,2633.8,2633.7,9.16366]
[1729624724122,0.37985,2633.8,2633.7,8.7838]
[1729624724324,0.37985,2633.8,2633.7,9.16366]
[1729624727833,0.37985,2633.8,2633.7,5.36686]
[1729624733636,0.37985,2633.8,2633.7,2.15906]
[1729624734140,0.37985,2633.8,2633.7,5.36686]
[1729624735740,0.37983,2634.0,2633.9,0.3798]
[1729624736040,0.37983,2634.0,2633.9,1.7498]
[1729624740143,0.37983,2634.0,2633.9,1.37]
[1729624740440,0.37985,2633.8,2633.7,3.2078]
[1729624740641,0.37989,2633.5,2633.4,1.7652]
[1729624740837,0.37989,2633.5,2633.4,2.1451]
[1729624741046,0.37989,2633.5,2633.4,1.7652]
[1729624741939,0.37989,2633.5,2633.4,2.1451]
[1729624742342,5.1676,2633.5,2633.3,1.5296]
[1729624742645,0.19427663,2633.6,2632.4,0.80655]
[1729624742646,0.38003,2632.5,2632.4,0.80655]
[1729624742947,0.9498,2633.3,2632.4,1.7965]
[1729624743144,4.15753,2633.6,2633.2,1.37]
[1729624743346,1.74989,2633.5,2633.4,1.37]
[1729624743646,0.37992,2633.3,2633.2,1.37]
[1729624743843,1.74992,2633.3,2633.2,1.37]
[1729624744543,0.37992,2633.3,2633.2,1.37]
[1729624746737,1.45018804,2633.8,2633.2,1.37]
[1729624746939,1.74987,2633.6,2633.5,1.37]
[1729624747243,0.37989,2633.5,2633.4,1.37]
[1729624748543,0.37989,2633.5,2633.2,3.2078]
[1729624748544,1.37,2633.5,2633.2,4.5778]
[1729624748742,0.3799,2633.4,2633.3,1.37]
[1729624749645,0.3799,2633.4,2633.3,1.74992]
[1729624749847,1.7499,2633.5,2633.3,1.74992]
[1729624750242,1.7499,2633.5,2633.4,0.3977]
[1729624752348,1.7499,2633.5,2633.4,2.1476]
[1729624752650,1.74989,2633.5,2633.4,1.7677]
[1729624752843,1.74989,2633.5,2633.4,0.7776]
[1729624753243,1.74989,2633.5,2633.4,0.3977]
[1729624753450,1.74988,2633.6,2633.4,1.7677]
[1729624753643,1.74988,2633.6,2633.5,2.15879]
[1729624753644,0.37988,2633.6,2633.5,2.15879]
[1729624753844,1.74988,2633.6,2633.5,2.15879]
[1729624754043,1.74988,2633.6,2633.5,0.78879]
[1729624755048,1.74988,2633.6,2633.5,0.4089]
[1729624755246,1.74988,2633.6,2633.5,3.6167]
[1729624757046,1.74988,2633.6,2633.5,0.4089]
[1729624758452,1.74988,2633.6,2633.5,0.78879]
[1729624758858,0.37988,2633.6,2633.5,0.78879]
[1729624759051,0.37988,2633.6,2633.5,0.4089]
[1729624760756,0.37988,2633.6,2633.5,0.78879]
[1729624762258,1.37,2633.7,2633.5,2.15879]
[1729624762553,0.37986,2633.7,2633.6,5.54666]
[1729624762752,1.37,2633.8,2633.6,5.1668]
[1729624763055,0.37986,2633.7,2633.6,1.37]
[1729624763259,0.37987,2633.6,2633.5,0.4089]
[1729624763460,0.37987,2633.6,2633.5,1.7789]
[1729624765253,0.94957,2634.0,2633.5,1.7789]
[1729624765465,0.94957,2634.0,2633.6,1.74987]
[1729624765466,0.37987,2633.7,2633.6,1.74987]
[1729624765858,0.37987,2633.7,2633.6,2.17337]
[1729624768957,1.37,2633.7,2633.5,5.36658]
[1729624769159,0.37987,2633.6,2633.5,2.15878]
[1729624771063,1.37,2633.8,2633.5,1.7789]
[1729624771366,0.37986,2633.8,2633.7,1.74984]
[1729624773073,1.37,2634.0,2633.7,1.37]
[1729624773271,0.37983,2634.0,2633.9,1.74981]
[1729624773670,0.37983,2634.0,2633.9,2.16541]
[1729624776578,1.74982,2634.0,2633.9,2.16541]
[1729624778675,1.37,2634.0,2633.9,2.16541]
[1729624778872,0.95410586,2634.3,2633.9,0.79541]
[1729624779079,1.74982,2634.0,2633.9,0.79541]
[1729624780283,0.37983,2633.9,2633.8,0.3935]
[1729624780480,0.37983,2633.9,2633.6,4.01117]
[1729624780481,0.37986,2633.7,2633.6,4.01117]
[1729624780677,0.37986,2633.7,2633.6,2.17337]
[1729624783778,0.37986,2633.7,2633.6,1.7935]
[1729624783984,0.37986,2633.7,2633.6,1.74987]
[1729624786098,0.37986,2633.7,2633.6,1.37]
[1729624786280,0.37986,2633.7,2633.6,1.74987]
[1729624790383,0.37989,2633.6,2633.5,1.74987]
[1729624791289,0.37989,2633.5,2633.4,4.0094]
[1729624791488,0.37989,2633.5,2633.4,0.8016]
[1729624791691,0.37989,2633.5,2633.4,2.5515]
[1729624792385,0.37988,2633.6,2633.5,0.37986]
[1729624792600,0.37988,2633.6,2633.5,1.74986]
[1729624793103,0.37988,2633.6,2633.5,4.95766]
[1729624794090,1.37,2633.7,2633.5,4.5778]
[1729624794292,1.74987,2633.7,2633.6,0.37987]
[1729624795093,0.37987,2633.7,2633.6,0.37987]
[1729624795900,0.37987,2633.7,2633.6,1.74987]
[1729624796586,0.37986,2633.8,2633.7,0.37985]
[1729624796898,1.37,2634.0,2633.7,1.7907]
[1729624797090,0.37985,2633.9,2633.8,0.78983]
[1729624797485,1.74985,2633.9,2633.8,0.78983]
[1729624798997,1.74985,2633.9,2633.8,0.41]
[1729624800394,0.37985,2633.9,2633.8,2.15985]
[1729624800596,1.74985,2633.9,2633.8,0.78985]
[1729624801292,1.74985,2633.9,2633.8,0.41]
[1729624801695,1.74985,2633.9,2633.8,0.78985]
[1729624801891,1.74985,2633.9,2633.8,0.41]
[1729624802298,1.74985,2633.9,2633.8,0.78985]
[1729624802694,1.74985,2633.9,2633.8,0.41]
[1729624803096,1.74985,2633.9,2633.7,0.4207]
[1729624803097,1.37,2633.9,2633.7,0.4207]
[1729624803404,1.74985,2633.8,2633.7,0.4207]
[1729624804997,0.37987,2633.6,2633.5,3.6283]
[1729624805196,0.3799,2633.4,2633.3,0.4172]
[1729624805406,1.7499,2633.4,2633.3,0.79712]
[1729624807504,0.3799,2633.4,2633.3,0.4172]
[1729624807805,1.7499,2633.4,2633.3,0.79712]
[1729624812808,1.7499,2633.4,2633.3,0.4172]
[1729624813104,0.37993,2633.2,2633.1,0.4205]
[1729624813299,1.74993,2633.2,2633.1,0.4205]
[1729624813500,1.74993,2633.2,2633.0,0.4182]
[1729624813501,0.37995,2633.1,2633.0,0.4182]
[1729624813698,1.74995,2633.1,2633.0,0.4182]
[1729624813902,1.37,2633.1,2632.8,3.6018]
[1729624814212,1.74998,2632.9,2632.8,3.6018]
[1729624814514,0.37996,2633.1,2633.0,0.37995]
[1729624814806,0.37996,2633.1,2633.0,1.74995]
[1729624814807,1.74996,2633.1,2633.0,1.74995]
[1729624815303,1.74996,2633.1,2633.0,0.4103]
[1729624815701,0.37996,2633.0,2632.9,0.4055]
[1729624815904,1.74996,2633.0,2632.9,0.4055]
[1729624827310,5.54836,2633.0,2632.9,0.4055]
[1729624827717,0.38,2632.7,2632.6,0.4103]
[1729624827921,0.38003,2632.5,2632.4,0.811]
[1729624828220,1.75003,2632.5,2632.4,0.811]
[1729624828921,5.54843,2632.5,2632.4,0.4063]
[1729624829321,0.38005,2632.4,2632.3,3.2078]
[1729624829515,1.75005,2632.4,2632.3,3.2078]
[1729624829717,5.54925,2632.4,2632.3,3.2078]
[1729624830227,0.38006,2632.3,2632.2,0.402]
[1729624830519,1.75006,2632.3,2632.2,0.402]
[1729624831113,5.54926,2632.3,2632.2,0.402]
[1729624833922,1.75006,2632.3,2632.2,0.402]
[1729624837925,5.54926,2632.3,2632.2,0.402]
[1729624838124,1.75006,2632.3,2632.2,0.402]
[1729624843436,0.38005,2632.5,2632.4,0.38004]
[1729624843632,1.75005,2632.5,2632.4,0.38004]
[1729624843933,0.38006,2632.4,2632.3,0.38006]
[1729624844125,1.75006,2632.4,2632.3,0.38006]
[1729624845338,0.38006,2632.3,2632.2,0.78207]
[1729624845525,1.75006,2632.3,2632.2,0.402]
[1729624846230,0.38008,2632.2,2632.1,0.4047]
[1729624846435,1.75008,2632.2,2632.1,0.4047]
[1729624847638,1.75008,2632.2,2632.1,0.78479]
[1729624849033,1.75008,2632.2,2632.1,0.4047]
[1729624850136,1.75008,2632.2,2632.1,0.78479]
[1729624850935,1.75008,2632.2,2632.1,0.4047]
[1729624855141,0.38008,2632.2,2632.1,0.4047]
[1729624855449,1.75008,2632.2,2632.1,0.4047]
[1729624858039,1.75008,2632.2,2632.1,0.78479]
[1729624858343,3.2078,2632.7,2632.1,5.95399]
[1729624858645,3.2078,2632.7,2632.6,1.75002]
[1729624858843,1.74999,2632.9,2632.6,1.37]
[1729624859145,1.74999,2632.9,2632.8,0.37999]
[1729624859439,0.37999,2632.8,2632.7,1.2102]
[1729624859647,1.74999,2632.8,2632.7,1.2102]
[1729624860145,1.74999,2632.8,2632.7,0.8302]
[1729624860543,1.74999,2632.8,2632.7,1.2102]
[1729624862136,1.74999,2632.8,2632.7,0.8302]
[1729624863039,5.54839,2632.8,2632.7,0.8302]
[1729624863847,5.54839,2632.8,2632.7,0.4029]
[1729624865238,1.74999,2632.8,2632.7,0.4029]
[1729624865432,5.54839,2632.8,2632.7,0.4029]
[1729624865845,1.74999,2632.8,2632.7,0.7829]
[1729624866138,1.74999,2632.8,2632.7,0.4029]
[1729624866341,5.54839,2632.8,2632.7,0.4029]
[1729624867141,5.54839,2632.8,2632.5,0.3945]
[1729624867142,5.1684,2632.8,2632.5,0.3945]
[1729624867343,1.75002,2632.6,2632.5,0.8145]
[1729624872753,5.54842,2632.6,2632.5,0.42]
[1729624873657,1.75002,2632.6,2632.5,0.42]
[1729624889270,1.75002,2632.6,2632.5,0.80003]
[1729624889466,1.75002,2632.6,2632.5,0.42]
[1729624890167,1.75002,2632.6,2632.5,0.80003]
[1729624891964,3.2078,2633.0,2632.5,1.79]
[1729624892170,0.38001,2632.7,2632.6,1.75]
[1729624892364,1.75001,2632.7,2632.6,0.38]
[1729624892961,1.46382255,2633.2,2632.6,1.37]
[1729624893168,1.74998,2633.0,2632.9,0.37997]
[1729624893373,1.74998,2633.0,2632.9,0.7866]
[1729624893569,1.74998,2633.0,2632.9,1.16658]
[1729624894272,1.74998,2633.0,2632.9,0.7866]
[1729624894471,1.74998,2633.0,2632.9,1.16658]
[1729624894978,1.74998,2633.0,2632.9,0.7866]
[1729624896572,1.74998,2633.0,2632.9,1.16658]
[1729624897676,1.74998,2633.0,2632.9,0.7866]
[1729624897975,1.74998,2633.0,2632.9,1.16658]
[1729624898179,0.37996,2633.1,2633.0,0.37996]
[1729624898368,1.74996,2633.1,2633.0,0.37996]
[1729624898568,0.37996,2633.0,2632.9,1.16656]
[1729624898872,1.74996,2633.0,2632.9,0.7866]
[1729624899273,1.74996,2633.0,2632.9,1.16658]
[1729624901379,3.2078,2633.3,2632.9,2.1566]
[1729624901568,0.37996,2633.0,2632.9,2.53657]
[1729624901768,1.37,2633.0,2632.9,1.16658]
[1729624901975,1.37,2633.0,2632.9,4.96498]
[1729624902375,0.729,2633.0,2632.9,6.33498]
[1729624902679,0.088,2633.0,2632.9,6.33498]
[1729624903673,1.37,2633.2,2633.1,0.37995]
[1729624903878,1.74993,2633.2,2633.1,0.37995]